bitfinex-derivatives/quotes_ETHF0:USTF0_20250331
["timestamp","ask_amount","ask_price","bid_price","bid_amount"]
[1743395924601,3.2078,1803.7,1803.2,1.494]
[1743395924806,0.00832547,1803.4,1803.2,1.494]
[1743395925009,1.10916,1803.3,1803.2,1.494]
[1743395925607,1.10916,1803.3,1803.2,4.7018]
[1743395926905,2.59066,1803.3,1803.2,4.7018]
[1743395927102,0.00832547,1803.4,1803.2,4.7018]
[1743395927302,1.4909,1804.0,1803.6,1.10898]
[1743395927508,1.4166,1803.9,1803.7,2.5337]
[1743395927711,1.4166,1803.9,1803.7,1.4248]
[1743395927905,1.10885,1803.8,1803.7,1.4248]
[1743395928506,1.109,1803.6,1803.4,3.2078]
[1743395928700,5.2486,1803.9,1803.5,2.5338]
[1743395929010,1.10893,1803.7,1803.5,1.4248]
[1743395929211,5.2486,1803.9,1803.5,1.4248]
[1743395929212,1.10898,1803.6,1803.5,1.4248]
[1743395929603,1.4166,1803.7,1803.5,1.4248]
[1743395929803,1.10898,1803.6,1803.5,1.4248]
[1743395930500,0.7127,1803.6,1803.5,1.4248]
[1743395930706,1.82168,1803.6,1803.5,1.4248]
[1743395930901,3.32148,1803.6,1803.5,1.4248]
[1743395931104,2.2125,1803.6,1803.5,1.4248]
[1743395931507,3.32148,1803.6,1803.5,1.4248]
[1743395932709,2.2125,1803.6,1803.2,1.4446]
[1743395933009,3.32151,1803.6,1803.3,1.10914]
[1743395933216,3.32151,1803.6,1803.3,1.10913]
[1743395933217,1.10905,1803.5,1803.3,1.10913]
[1743395934115,2.2125,1803.6,1803.3,3.2078]
[1743395934116,1.1091,1803.4,1803.3,3.2078]
[1743395934516,1.10907,1803.5,1803.3,3.2078]
[1743395934811,1.10907,1803.5,1803.3,4.31695]
[1743395935529,2.2125,1803.6,1803.3,4.31695]
[1743395935814,3.32151,1803.6,1803.4,1.10908]
[1743395936013,3.32151,1803.6,1803.3,4.31692]
[1743395936014,3.32153,1803.6,1803.3,4.31692]
[1743395936519,1.10904,1803.5,1803.3,4.31692]
[1743395936919,1.1091,1803.4,1803.3,3.2078]
[1743395937109,1.10914,1803.4,1803.1,3.89932547]
[1743395937314,1.10914,1803.4,1803.1,5.00855547]
[1743395937620,1.10918,1803.3,1803.1,5.00855547]
[1743395937816,2.51068,1803.3,1803.1,3.89932547]
[1743395938715,1.4015,1803.3,1803.1,3.89932547]
[1743395939025,1.10922,1803.2,1803.1,3.89932547]
[1743395940921,1.80092,1803.2,1803.1,0.00832547]
[1743395941618,0.6917,1803.2,1803.1,0.00832547]
[1743395941921,3.2078,1803.7,1803.1,11.08547839]
[1743395942124,2.233,1803.8,1803.5,3.2078]
[1743395942323,0.7468,1803.8,1803.7,1.10892]
[1743395942516,1.10892,1803.7,1803.6,0.6792]
[1743395944824,1.85571,1803.8,1803.6,0.6792]
[1743395945022,0.7468,1803.8,1803.6,0.6792]
[1743395945530,4.31655,1804.0,1803.8,1.10882]
[1743395945829,3.2078,1804.0,1803.8,1.1088]
[1743395946128,3.2078,1804.0,1803.7,0.7498]
[1743395946129,3.2078,1804.0,1803.9,1.10879]
[1743395946715,0.717,1804.3,1803.9,1.10878]
[1743395946921,1.4422,1804.1,1803.9,1.10878]
[1743395947122,2.55089,1804.1,1804.0,1.3753]
[1743395947324,2.55087,1804.1,1804.0,1.3753]
[1743395948823,1.4422,1804.1,1804.0,1.3753]
[1743395949024,2.55087,1804.1,1804.0,1.3753]
[1743395949225,1.4422,1804.1,1804.0,1.3753]
[1743395949426,2.55087,1804.1,1804.0,1.3753]
[1743395949926,1.4422,1804.1,1804.0,1.3753]
[1743395950630,1.10861,1804.2,1804.0,2.48401]
[1743395950830,2.53011,1804.2,1804.0,1.3753]
[1743395951030,1.10867,1804.1,1804.0,1.3753]
[1743395952120,1.10873,1804.0,1803.9,3.2078]
[1743395952327,2.52623,1804.0,1803.9,3.2078]
[1743395953021,1.10879,1803.9,1803.8,1.4957]
[1743395953233,1.10885,1803.8,1803.7,1.4957]
[1743395953723,2.52635,1803.8,1803.7,1.4957]
[1743395953927,5.97891,1804.5,1803.7,15.8216097]
[1743395954129,0.7153,1804.4,1803.9,4.31656]
[1743395954332,1.10863,1804.2,1804.0,1.4726]
[1743395954519,1.10859,1804.3,1804.0,2.58965547]
[1743395954831,1.10861,1804.2,1804.0,1.48092547]
[1743395955129,1.10867,1804.1,1804.0,1.48092547]
[1743395955531,1.10864,1804.2,1804.0,1.48092547]
[1743395955831,1.10867,1804.1,1804.0,1.48092547]
[1743395957133,4.31647,1804.1,1804.0,0.00832547]
[1743395957332,7.56237,1804.1,1804.0,0.00832547]
[1743395957632,1.10885,1803.8,1803.7,1.3585]
[1743395959236,1.40772547,1803.9,1803.7,1.3585]
[1743395959430,2.51656547,1803.9,1803.7,1.3585]
[1743395959631,1.40772547,1803.9,1803.7,1.3585]
[1743395959831,1.10885,1803.8,1803.7,1.3585]
[1743395961843,2.51656547,1803.9,1803.7,2.4674]
[1743395962041,2.51656547,1803.9,1803.7,1.3585]
[1743395962342,2.51656547,1803.9,1803.8,1.464]
[1743395963035,1.11711547,1803.9,1803.8,1.464]
[1743395963235,0.00832547,1803.9,1803.8,2.57285]
[1743395964040,1.11711547,1803.9,1803.8,1.464]
[1743395965041,1.39422547,1803.9,1803.8,1.464]
[1743395965241,2.50301547,1803.9,1803.8,1.464]
[1743395965542,0.00832547,1803.9,1803.8,1.464]
[1743395966342,0.00832547,1803.9,1803.8,2.57285]
[1743395967241,1.11711547,1803.9,1803.8,1.464]
[1743395968844,2.57361547,1803.9,1803.8,1.464]
[1743395969036,0.00832547,1803.9,1803.8,1.464]
[1743395969341,1.11711547,1803.9,1803.8,1.464]
[1743395970741,1.11711547,1803.9,1803.8,4.6718]
[1743395970942,0.00832547,1803.9,1803.8,4.6718]
[1743395971244,1.11711547,1803.9,1803.8,4.6718]
[1743395972639,0.00832547,1803.9,1803.8,4.6718]
[1743395973045,1.11711547,1803.9,1803.8,4.6718]
[1743395973244,0.00832547,1803.9,1803.8,5.78065]
[1743395973648,1.84147,1804.5,1803.9,2.77195]
[1743395973941,3.29127,1804.5,1804.2,4.31637]
[1743395974146,1.10849,1804.4,1804.3,1.4874]
[1743395974841,3.29126,1804.5,1804.3,1.4874]
[1743395975151,1.10849,1804.4,1804.3,1.4874]
[1743395975441,3.29127,1804.5,1804.3,1.4874]
[1743395975948,3.29127,1804.5,1804.4,0.7007]
[1743395976647,2.1828,1804.5,1804.4,1.80919]
[1743395976846,1.5005,1804.7,1804.5,1.10838]
[1743395977043,2.6088,1804.7,1804.6,1.4524]
[1743395977238,1.5005,1804.7,1804.6,1.4524]
[1743395978546,1.5005,1804.7,1804.6,2.56076]
[1743395978746,1.5005,1804.7,1804.6,1.4524]
[1743395978935,2.6088,1804.7,1804.6,1.4524]
[1743395979141,1.5005,1804.7,1804.6,1.4524]
[1743395979447,4.31606,1804.8,1804.6,1.4524]
[1743395979948,1.4463,1804.7,1804.6,1.4524]
[1743395980555,2.5546,1804.7,1804.6,1.4524]
[1743395981446,1.4463,1804.7,1804.6,1.4524]
[1743395981646,2.5546,1804.7,1804.6,1.4524]
[1743395982747,1.4463,1804.7,1804.6,2.56076]
[1743395982943,2.5546,1804.7,1804.6,1.4524]
[1743395983546,1.10836,1804.6,1804.5,0.00832547]
[1743395983744,3.25336,1804.6,1804.5,1.49862547]
[1743395983948,6.46116,1804.6,1804.5,0.00832547]
[1743395984247,3.25336,1804.6,1804.5,0.00832547]
[1743395985145,6.46116,1804.6,1804.5,0.00832547]
[1743395985451,3.25336,1804.6,1804.5,0.00832547]
[1743395985754,1.10862,1804.2,1804.0,5.0148]
[1743395985957,1.10862,1804.2,1804.1,1.4931]
[1743395988348,1.11691547,1804.3,1804.1,1.4931]
[1743395988744,1.85767547,1804.3,1804.1,2.60173]
[1743395988951,1.85767547,1804.3,1804.1,1.4931]
[1743395989252,1.85767547,1804.3,1804.0,5.02312547]
[1743395989253,1.85767547,1804.3,1804.2,1.3929]
[1743395990246,1.10867,1804.1,1804.0,0.00832547]
[1743395990447,1.10865,1804.2,1804.0,0.00832547]
[1743395990645,1.10865,1804.2,1804.0,1.40122547]
[1743395990861,1.10867,1804.1,1804.0,1.40122547]
[1743395991655,0.74912547,1804.3,1804.0,1.40122547]
[1743395991955,1.10867,1804.1,1804.0,1.40122547]
[1743395993059,4.92167,1804.1,1804.0,0.00832547]
[1743395993248,1.10867,1804.1,1804.0,0.00832547]
[1743395993448,4.92167,1804.1,1804.0,0.00832547]
[1743395994456,0.74912547,1804.3,1804.0,0.00832547]
[1743395994652,1.10867,1804.1,1804.0,0.71682547]
[1743395994851,1.10867,1804.1,1804.0,2.12212547]
[1743395995757,1.10867,1804.2,1804.0,2.12212547]
[1743395995958,1.10867,1804.2,1804.1,1.4053]
[1743395996858,2.58397,1804.2,1804.1,1.4053]
[1743395998955,0.00832547,1804.3,1804.1,1.4053]
[1743395999154,0.00832547,1804.3,1804.2,5.06531]
[1743395999659,4.31614,1804.7,1804.4,1.10845]
[1743396000058,4.31614,1804.7,1804.5,1.4287]
[1743396000259,1.10836,1804.6,1804.5,1.4287]
[1743396000665,5.68764,1804.7,1804.5,1.4287]
[1743396001160,1.10836,1804.6,1804.5,1.4287]
[1743396001553,5.68764,1804.7,1804.5,1.4287]
[1743396002658,5.68764,1804.7,1804.5,2.1698]
[1743396002858,1.10836,1804.6,1804.5,2.1698]
[1743396003060,1.10836,1804.6,1804.5,1.4287]
[1743396003261,2.54596,1804.6,1804.5,1.4287]
[1743396003757,3.801,1805.0,1804.5,1.4287]
[1743396004058,1.10818,1804.9,1804.6,5.79844]
[1743396004256,1.10818,1804.9,1804.7,1.4746]
[1743396004669,3.27776,1805.0,1804.7,2.58289]
[1743396004863,2.1696,1805.0,1804.7,1.4746]
[1743396005062,2.1696,1805.0,1804.8,1.4746]
[1743396005063,1.10818,1804.9,1804.8,1.4746]
[1743396005258,2.54578,1804.9,1804.8,1.4746]
[1743396009064,6.34578,1804.9,1804.8,1.4746]
[1743396010064,2.54578,1804.9,1804.8,1.4746]
[1743396010367,1.10818,1804.9,1804.8,1.4746]
[1743396010570,2.57438,1804.9,1804.8,1.4746]
[1743396010763,1.1083,1804.7,1804.6,0.7411]
[1743396010963,1.4662,1804.9,1804.4,1.4708]
[1743396010964,1.10842,1804.5,1804.4,1.4708]
[1743396011160,3.2078,1805.7,1804.6,9.9486686]
[1743396011364,1.10789,1805.4,1804.9,3.2078]
[1743396011654,3.2078,1805.5,1805.2,3.2078]
[1743396011864,3.2078,1805.3,1805.0,0.00832547]
[1743396012166,3.9402,1805.5,1805.1,3.2078]
[1743396012362,1.3763,1805.3,1805.1,3.9476]
[1743396012762,5.79733,1805.5,1805.1,5.0556]
[1743396012960,2.48421,1805.4,1805.1,5.05565]
[1743396013260,2.48421,1805.4,1805.1,3.9476]
[1743396013261,1.3763,1805.4,1805.1,3.9476]
[1743396013563,1.3763,1805.4,1805.2,1.10796]
[1743396013764,2.4842,1805.4,1805.1,5.05565]
[1743396013961,4.31574,1805.3,1805.1,0.7398]
[1743396014267,5.69204,1805.3,1805.1,0.7398]
[1743396014568,3.2078,1805.5,1805.1,3.9476]
[1743396014868,1.3763,1805.6,1805.4,1.10787]
[1743396015064,1.3763,1805.6,1805.2,1.10799]
[1743396015065,1.10781,1805.6,1805.2,1.10799]
[1743396015268,2.52372,1805.5,1805.2,1.10799]
[1743396015868,1.4159,1805.5,1805.3,1.10792]
[1743396016068,1.10781,1805.5,1805.2,0.6888]
[1743396016366,2.52371,1805.5,1805.2,1.79679]
[1743396016561,2.52371,1805.5,1805.2,0.6888]
[1743396016966,2.52374,1805.5,1805.2,1.79679]
[1743396017166,2.52373,1805.5,1805.2,1.79677]
[1743396017561,1.4159,1805.5,1805.2,0.6888]
[1743396017768,2.52371,1805.5,1805.2,1.79676]
[1743396017969,1.4159,1805.5,1805.3,1.10793]
[1743396018469,1.10788,1805.4,1805.1,5.05561]
[1743396018668,4.6237,1805.5,1805.1,5.05561]
[1743396018870,2.52377,1805.5,1805.2,1.10799]
[1743396019071,1.4721,1805.4,1805.2,1.10799]
[1743396019565,2.57998,1805.4,1805.2,1.10799]
[1743396019766,1.4721,1805.4,1805.2,1.10799]
[1743396019967,2.58001,1805.4,1805.2,1.10799]
[1743396021373,3.9571,1805.7,1805.1,3.9476]
[1743396021573,2.59319,1805.6,1805.4,1.10783]
[1743396021774,2.59318,1805.6,1805.1,3.9476]
[1743396022076,2.59318,1805.6,1805.4,1.10786]
[1743396022266,1.4854,1805.6,1805.1,3.9476]
[1743396022463,1.4854,1805.5,1805.1,3.9476]
[1743396022676,2.59322,1805.5,1805.3,1.10788]
[1743396022871,3.9571,1805.7,1805.4,1.10784]
[1743396023078,3.9571,1805.7,1805.3,1.10792]
[1743396023079,1.10786,1805.5,1805.3,1.10792]
[1743396023275,1.10786,1805.5,1805.1,3.9476]
[1743396023472,1.10786,1805.5,1805.3,1.10789]
[1743396024678,2.59319,1805.6,1805.3,1.10789]
[1743396024878,1.4854,1805.6,1805.4,1.10784]
[1743396025174,2.59316,1805.6,1805.4,1.10784]
[1743396025372,2.59317,1805.6,1805.1,3.9476]
[1743396025679,2.59315,1805.6,1805.4,1.10785]
[1743396025874,2.59315,1805.6,1805.3,1.1079]
[1743396026178,2.59315,1805.6,1805.4,1.10786]
[1743396026972,2.59315,1805.6,1805.5,1.3824]
[1743396028386,1.4854,1805.6,1805.5,1.3824]
[1743396028582,1.4854,1805.6,1805.5,2.49021]
[1743396028881,0.7493,1805.7,1805.6,1.10775]
[1743396029078,0.7493,1805.7,1805.6,3.28495]
[1743396029271,3.98529,1805.9,1805.7,1.10766]
[1743396029472,0.7193,1805.9,1805.8,1.10763]
[1743396030079,1.78574,1806.2,1805.9,1.10754]
[1743396030274,0.7193,1806.1,1805.8,2.54518]
[1743396030479,0.7193,1806.1,1805.9,1.385]
[1743396030480,2.1358,1806.1,1805.9,1.385]
[1743396030785,1.1075,1806.0,1805.9,1.385]
[1743396030976,1.4165,1806.0,1805.9,1.385]
[1743396031575,2.524,1806.0,1805.9,1.385]
[1743396032277,1.1075,1806.0,1805.9,1.385]
[1743396032774,2.524,1806.0,1805.9,1.385]
[1743396032975,1.10747,1806.1,1805.9,1.385]
[1743396033280,3.27729,1806.1,1805.9,1.385]
[1743396033474,2.1698,1806.1,1805.9,1.385]
[1743396033780,1.10763,1805.8,1805.7,3.2078]
[1743396034081,1.3779,1806.0,1805.7,4.5653]
[1743396034281,1.10757,1805.9,1805.8,1.3575]
[1743396034482,1.10756,1805.9,1805.8,1.3575]
[1743396035685,2.48544,1806.0,1805.8,1.3575]
[1743396035891,1.3779,1806.0,1805.8,1.3575]
[1743396036086,2.48543,1806.0,1805.8,1.3575]
[1743396036479,1.3779,1806.0,1805.8,2.46508]
[1743396036684,2.48542,1806.0,1805.8,1.3575]
[1743396036879,2.48542,1806.0,1805.9,1.4479]
[1743396037585,1.10752,1806.0,1805.9,1.4479]
[1743396038888,1.1075,1806.0,1805.9,1.4479]
[1743396039082,3.18618,1806.1,1805.9,1.4479]
[1743396039283,0.19421183,2689.1,1805.9,4.6557]
[1743396039284,3.2078,1806.6,1805.9,4.6557]
[1743396039483,3.2078,1806.6,1806.2,1.10736]
[1743396039484,0.7221,1806.4,1806.2,1.10736]
[1743396039788,1.10728,1806.4,1806.1,4.32352547]
[1743396039987,1.10728,1806.4,1806.2,1.3823]
[1743396040182,1.79162,1806.5,1806.2,8.71540293]
[1743396040386,0.6844,1806.5,1806.2,9.82276293]
[1743396040579,1.10726,1806.4,1806.3,1.3823]
[1743396040781,1.10726,1806.4,1806.3,4.5901]
[1743396040978,2.56776,1806.4,1806.3,4.5901]
[1743396041793,1.10726,1806.4,1806.3,4.5901]
[1743396042089,1.79164,1806.5,1806.3,4.5901]
[1743396042290,1.79164,1806.5,1806.4,1.3823]
[1743396042490,1.10734,1806.3,1806.1,3.21612547]
[1743396042692,0.6844,1806.5,1806.2,1.4482]
[1743396042894,1.10732,1806.3,1806.2,1.4482]
[1743396043285,1.79164,1806.5,1806.2,1.4482]
[1743396043596,1.10729,1806.4,1806.2,1.4482]
[1743396043794,1.1073,1806.4,1806.2,1.4482]
[1743396044094,0.6844,1806.5,1806.3,3.2078]
[1743396044291,0.6844,1806.5,1806.4,2.1486]
[1743396045397,1.7916,1806.5,1806.4,2.1486]
[1743396046091,1.10715,1806.6,1806.4,2.1486]
[1743396046292,1.82345,1806.8,1806.5,2.48627]
[1743396046494,0.7164,1806.8,1806.6,1.3791]
[1743396046693,1.10707,1806.7,1806.6,1.3791]
[1743396047087,1.82346,1806.8,1806.6,1.3791]
[1743396047286,0.7164,1806.8,1806.6,1.3791]
[1743396047489,1.10707,1806.7,1806.6,1.3791]
[1743396047698,9.86092,1807.1,1806.6,1.3791]
[1743396047887,1.10707,1806.7,1806.6,1.3791]
[1743396048589,1.1072,1806.5,1806.4,1.3791]
[1743396049294,1.10732,1806.3,1806.2,3.9312]
[1743396049601,0.7295,1806.6,1806.2,5.3023]
[1743396049897,1.10731,1806.4,1806.3,1.3711]
[1743396051395,1.84881,1806.4,1806.3,1.3711]
[1743396051895,1.10732,1806.3,1806.2,3.9312]
[1743396052096,1.84572,1806.3,1806.2,5.29]
[1743396052698,5.05352,1806.3,1806.2,1.3588]
[1743396052899,1.84572,1806.3,1806.2,1.3588]
[1743396053402,1.10738,1806.2,1806.1,0.00832547]
[1743396053902,1.10738,1806.2,1806.1,1.36712547]
[1743396056897,2.56368,1806.2,1806.1,1.36712547]
[1743396059202,5.77148,1806.2,1806.1,0.00832547]
[1743396060302,2.56368,1806.2,1806.1,0.00832547]
[1743396060995,5.77148,1806.2,1806.1,0.00832547]
[1743396061198,2.56371,1806.2,1805.9,1.10753]
[1743396061398,1.4563,1806.2,1806.0,2.1729]
[1743396061597,1.4563,1806.2,1806.1,1.4492]
[1743396061902,0.7384,1806.3,1806.2,1.10738]
[1743396062105,1.1073,1806.4,1806.1,5.76442]
[1743396062304,1.10732,1806.3,1806.2,2.1378]
[1743396062599,1.11554713,1806.4,1806.2,2.1378]
[1743396062811,0.00824713,1806.4,1806.3,1.4492]
[1743396063196,1.11550713,1806.4,1806.3,1.4492]
[1743396063396,0.00824713,1806.4,1806.3,1.4492]
[1743396063805,0.00824713,1806.4,1806.3,4.657]
[1743396064406,0.00824713,1806.4,1806.3,5.76432]
[1743396067498,0.00824713,1806.4,1806.3,8.26432]
[1743396067697,0.00824713,1806.4,1806.3,5.76432]
[1743396067900,0.00824713,1806.4,1806.3,4.657]
[1743396068102,1.11550713,1806.4,1806.3,4.657]
[1743396068299,0.00824713,1806.4,1806.3,4.657]
[1743396068504,0.00824713,1806.4,1806.3,5.76432]
[1743396068806,0.00824713,1806.4,1806.3,8.26432]
[1743396070004,58.59766,1807.4,1806.4,2.76803]
[1743396070201,1.10695,1806.9,1806.7,4.31485]
[1743396070403,1.10695,1806.9,1806.8,1.489]
[1743396071206,1.81169,1807.1,1806.8,1.489]
[1743396071408,1.81169,1807.1,1806.9,0.7473]
[1743396071603,1.81169,1807.1,1807.0,1.489]
[1743396071798,0.7048,1807.1,1807.0,1.489]
[1743396072810,2.54688,1807.2,1807.0,1.489]
[1743396073203,1.81155,1807.3,1807.0,2.59588]
[1743396073407,3.23131,1807.3,1807.0,2.59585]
[1743396073703,3.23131,1807.3,1807.1,1.3823]
[1743396074103,1.10677,1807.2,1807.1,1.3823]
[1743396074607,2.52657,1807.2,1807.1,1.3823]
[1743396074995,1.10683,1807.1,1807.0,0.00830197]
[1743396075202,4.6276,1807.1,1806.5,3.2078]
[1743396075506,3.2078,1806.8,1806.4,1.3823]
[1743396075714,1.1072,1806.5,1806.4,1.3823]
[1743396076108,1.10726,1806.4,1806.3,3.2078]
[1743396076413,1.10726,1806.4,1806.3,3.21610197]
[1743396076713,4.31506,1806.4,1806.3,0.00830197]
[1743396077005,4.31506,1806.4,1806.0,3.9459]
[1743396077006,7.52542979,1806.4,1806.0,3.2078]
[1743396077201,3.2078,1806.1,1805.8,0.7381]
[1743396077405,8.18327,1806.1,1805.9,1.4292]
[1743396078009,3.874,1806.1,1805.9,2.53672]
[1743396078208,7.806,1806.3,1805.9,2.53672]
[1743396078400,7.806,1806.3,1805.9,1.4292]
[1743396078597,1.10742,1806.2,1805.9,1.4292]
[1743396079007,1.10745,1806.1,1805.9,1.4292]
[1743396079206,1.1075,1806.0,1805.9,1.4292]
[1743396080113,3.2078,1806.1,1805.8,0.00830197]
[1743396080114,1.10756,1805.9,1805.8,0.00830197]
[1743396080409,2.48956,1805.9,1805.8,0.00830197]
[1743396080809,6.41576,1805.9,1805.8,0.00830197]
[1743396081007,7.16616,1805.9,1805.8,0.00830197]
[1743396082716,3.20796,1805.9,1805.8,0.00830197]
[1743396083815,6.41576,1805.9,1805.8,0.00830197]
[1743396086118,1.10781,1805.5,1805.4,0.6884]
[1743396086413,1.10779,1805.6,1805.4,0.6884]
[1743396086613,1.10779,1805.6,1805.5,1.4215]
[1743396086920,2.46649,1805.6,1805.5,1.4215]
[1743396088922,1.10781,1805.5,1805.4,0.00830197]
[1743396089125,5.73191,1805.5,1805.4,0.00830197]
[1743396089327,6.43981,1805.5,1805.4,0.00830197]
[1743396090815,6.43981,1805.5,1805.1,0.6854]
[1743396090816,1.10799,1805.2,1805.1,0.6854]
[1743396091628,1.10795,1805.3,1805.1,0.6854]
[1743396091824,1.10799,1805.2,1805.1,0.6854]
[1743396092525,1.10799,1805.2,1805.1,2.1812]
[1743396092826,1.10799,1805.2,1805.1,1.4958]
[1743396093126,2.58879,1805.2,1805.1,1.4958]
[1743396098425,4.95299,1805.2,1805.1,1.4958]
[1743396098626,5.02354,1805.5,1805.2,1.10795]
[1743396098832,3.21610197,1805.7,1805.3,2.148]
[1743396099034,3.21610197,1805.7,1805.6,1.10775]
[1743396099335,3.21610197,1805.7,1805.6,4.31555]
[1743396099336,0.00830197,1805.7,1805.6,4.31555]
[1743396099634,1.10755,1806.0,1805.7,1.10768]
[1743396099824,1.10756,1805.9,1805.8,1.4232]
[1743396100636,2.76907,1805.8,1805.2,3.855]
[1743396100833,1.10787,1805.4,1805.3,1.4887]
[1743396102436,4.31567,1805.4,1805.3,1.4887]
[1743396103139,1.10787,1805.4,1805.3,1.4887]
[1743396103542,2.53117,1805.4,1805.3,1.4887]
[1743396104740,1.10787,1805.4,1805.3,1.4887]
[1743396105839,2.53117,1805.4,1805.3,1.4887]
[1743396106143,5.73897,1805.4,1805.3,1.4887]
[1743396106340,1.10799,1805.2,1805.1,0.7194]
[1743396106543,4.31579,1805.2,1805.1,2.146]
[1743396106842,1.10799,1805.2,1805.1,2.146]
[1743396108042,8.4782,1805.4,1805.1,2.146]
[1743396108244,1.10793,1805.3,1805.2,1.4266]
[1743396108742,2.52833,1805.3,1805.2,1.4266]
[1743396112744,6.36533,1805.3,1805.2,1.4266]
[1743396116646,6.36533,1805.3,1805.1,0.7194]
[1743396116647,1.10799,1805.2,1805.1,0.7194]
[1743396116848,5.67499,1805.2,1805.1,2.1604]
[1743396118356,5.67499,1805.2,1805.1,1.441]
[1743396118550,6.40489,1805.2,1805.1,1.441]
[1743396120953,9.48699,1805.2,1805.1,1.441]
[1743396121157,9.48699,1805.2,1805.1,2.1312]
[1743396122850,1.10806,1805.1,1805.0,0.00830197]
[1743396123054,3.26046,1805.1,1805.0,0.00830197]
[1743396125853,7.06346,1805.1,1805.0,0.00830197]
[1743396126453,1.83626,1805.1,1805.0,0.00830197]
[1743396126653,1.10806,1805.1,1805.0,0.00830197]
[1743396128357,1.10806,1805.1,1805.0,1.44420197]
[1743396128559,4.31584,1805.2,1805.0,2.14210197]
[1743396128752,4.31584,1805.2,1805.1,0.7021]
[1743396128952,4.31584,1805.2,1805.1,2.138]
[1743396135059,3.2078,1805.2,1805.1,2.138]
[1743396135260,3.2078,1805.2,1805.1,3.24606]
[1743396135458,3.2078,1805.2,1805.1,2.138]
[1743396135757,4.31579,1805.2,1805.1,2.138]
[1743396137255,1.10799,1805.2,1805.1,2.138]
[1743396137457,4.31579,1805.2,1805.1,2.138]
[1743396140756,3.2078,1805.2,1805.1,3.24606]
[1743396140952,1.1079,1805.4,1805.2,1.10796]
[1743396141156,1.10793,1805.3,1805.2,1.4575]
[1743396143059,1.10791,1805.4,1805.2,2.56546]
[1743396143264,3.2078,1805.5,1805.3,2.51587]
[1743396143571,3.21610197,1806.0,1805.5,1.10776]
[1743396143863,2.0864,1805.9,1805.6,2.1157]
[1743396144051,1.10763,1805.8,1805.7,1.408]
[1743396145665,0.7001,1805.9,1805.7,2.51567]
[1743396145964,1.80768,1805.9,1805.7,1.408]
[1743396146156,1.80768,1805.9,1805.8,1.3588]
[1743396147166,0.7001,1805.9,1805.8,1.3588]
[1743396148867,1.80766,1805.9,1805.8,1.3588]
[1743396150069,3.21876,1805.9,1805.8,1.3588]
[1743396154963,1.10763,1805.8,1805.7,1.3884]
[1743396155164,1.5062,1805.8,1805.4,3.2078]
[1743396155372,1.10793,1805.3,1805.2,0.708]
[1743396155572,1.10793,1805.3,1805.2,2.0964]
[1743396155775,2.2463,1805.5,1805.2,2.0964]
[1743396155967,2.6141,1805.4,1805.3,1.3884]
[1743396156769,4.714,1805.4,1805.0,1.11638197]
[1743396156969,1.10799,1805.2,1805.1,1.3884]
[1743396157474,1.10806,1805.1,1805.0,0.00830197]
[1743396157671,1.84816,1805.1,1805.0,1.39670197]
[1743396157973,0.7401,1805.1,1805.0,1.39670197]
[1743396158872,1.10798,1805.3,1805.0,2.50478197]
[1743396159073,3.9312,1805.4,1805.1,1.10805]
[1743396159366,3.9312,1805.4,1805.1,1.3854]
[1743396159573,5.03912,1805.4,1805.1,1.3854]
[1743396159772,1.10796,1805.3,1805.1,1.3854]
[1743396160176,1.10799,1805.2,1805.1,1.3854]
[1743396161367,1.10806,1805.1,1805.0,0.00830197]
[1743396161569,1.86176,1805.1,1805.0,1.38330197]
[1743396164179,1.86176,1805.1,1805.0,0.00830197]
[1743396164477,1.86176,1805.1,1805.0,1.43820197]
[1743396171480,1.86176,1805.1,1805.0,0.00830197]
[1743396171685,1.10818,1804.9,1804.8,1.4355]
[1743396172287,1.84468,1804.9,1804.8,1.4355]
[1743396172978,8.12626197,1805.0,1804.8,1.4355]
[1743396173185,1.10818,1804.9,1804.8,1.4355]
[1743396173483,7.01810197,1805.0,1804.8,1.4355]
[1743396173683,3.21610197,1805.0,1804.8,1.4355]
[1743396173885,0.00830197,1805.0,1804.9,1.10818]
[1743396174082,0.00830197,1805.0,1804.9,2.60028]
[1743396175384,0.00830197,1805.0,1804.9,1.4921]
[1743396175583,0.00830197,1805.0,1804.9,2.60028]
[1743396175984,1.11642197,1805.0,1804.9,1.4921]
[1743396177978,0.00830197,1805.0,1804.9,1.4921]
[1743396178282,1.11642197,1805.0,1804.9,1.4921]
[1743396179377,0.00830197,1805.0,1804.9,2.60028]
[1743396179884,0.00830197,1805.0,1804.9,1.4921]
[1743396180685,0.00830197,1805.0,1804.9,2.60028]
[1743396184182,1.11642197,1805.0,1804.9,1.4921]
[1743396184775,1.10824,1804.8,1804.7,3.21610197]
[1743396185187,1.10824,1804.8,1804.7,0.00830197]
[1743396185582,0.00830197,1805.0,1804.9,1.10818]
[1743396186477,0.00830197,1805.0,1804.9,2.59648]
[1743396188887,0.00830197,1805.0,1804.9,5.09648]
[1743396189187,3.2078,1805.8,1805.2,2.76999]
[1743396189392,1.10774,1805.7,1805.4,1.10784]
[1743396189696,2.55974,1805.7,1805.5,1.4938]
[1743396189889,1.452,1805.7,1805.5,2.60159]
[1743396190292,1.452,1805.7,1805.6,1.4938]
[1743396191584,2.55969,1805.7,1805.6,1.4938]
[1743396191790,1.452,1805.7,1805.6,1.4938]
[1743396192588,0.00830197,1805.8,1805.6,2.60155]
[1743396192785,0.00830197,1805.8,1805.7,2.1434]
[1743396194292,1.11593197,1805.8,1805.7,2.1434]
[1743396194479,2.47523197,1805.8,1805.7,2.1434]